[Event "Titled Tuesday Blitz February 28 Late 2023"]
[White "Chigaev, Maksim"]
[Black "EREBUNI91"]
[WhiteFideId "4108116"]
[WhiteElo "2547"]
[BlackElo "2723"]
[Result "1-0"]
[Round "06"]
[TimeControl "180+2"]
[Date "2023.02.28"]
[WhiteClock "0:00:08"]
[BlackClock "0:00:04"]

1. Nf3 {[%clk 0:03:00]}  Nf6 {[%clk 0:03:00]} 2. c4 {[%clk 0:03:01]}  e6 {[%clk 0:02:58]} 3. g3 {[%clk 0:03:01]}  Be7 {[%clk 0:02:57]} 4. Bg2 {[%clk 0:03:01]}  O-O {[%clk 0:02:57]} 5. O-O {[%clk 0:03:02]}  d5 {[%clk 0:02:56]} 6. b3 {[%clk 0:03:03]}  b6 {[%clk 0:02:56]} 7. d4 {[%clk 0:03:03]}  Bb7 {[%clk 0:02:55]} 8. Nc3 {[%clk 0:03:04]}  Nbd7 {[%clk 0:02:53]} 9. Bb2 {[%clk 0:03:05]}  c5 {[%clk 0:02:51]} 10. Ne5 {[%clk 0:03:04]}  Rc8 {[%clk 0:02:49]} 11. Rc1 {[%clk 0:03:03]}  cxd4 {[%clk 0:02:39]} 12. Qxd4 {[%clk 0:03:02]}  Bc5 {[%clk 0:02:37]} 13. Qf4 {[%clk 0:03:02]}  Nh5 {[%clk 0:02:11]} 14. Qf3 {[%clk 0:02:54]}  Nxe5 {[%clk 0:01:58]} 15. Qxh5 {[%clk 0:02:54]}  Qf6 {[%clk 0:01:42]} 16. cxd5 {[%clk 0:02:28]}  exd5 {[%clk 0:01:30]} 17. Bxd5 {[%clk 0:02:20]}  Bxd5 {[%clk 0:01:21]} 18. Nxd5 {[%clk 0:02:20]}  Nf3+ {[%clk 0:01:19]} 19. Qxf3 {[%clk 0:01:56]}  Qxb2 {[%clk 0:01:19]} 20. Kg2 {[%clk 0:01:55]}  Qxa2 {[%clk 0:01:08]} 21. Ra1 {[%clk 0:01:52]}  Qd2 {[%clk 0:01:04]} 22. b4 {[%clk 0:01:38]}  Bd6 {[%clk 0:01:02]} 23. Rxa7 {[%clk 0:01:17]}  Bxb4 {[%clk 0:00:53]} 24. Rd7 {[%clk 0:01:17]}  Qb2 {[%clk 0:00:47]} 25. Nxb6 {[%clk 0:01:04]}  Rc2 {[%clk 0:00:46]} 26. Nd5 {[%clk 0:01:00]}  Bc5 {[%clk 0:00:41]} 27. e3 {[%clk 0:00:51]}  Rd2 {[%clk 0:00:39]} 28. Qe4 {[%clk 0:00:29]}  Qa2 {[%clk 0:00:33]} 29. Nc3 {[%clk 0:00:14]}  Qc2 {[%clk 0:00:29]} 30. Rxd2 {[%clk 0:00:08]}  Qxd2 {[%clk 0:00:27]} 31. Nd5 {[%clk 0:00:09]}  Rd8 {[%clk 0:00:25]} 32. Nf4 {[%clk 0:00:08]}  h6 {[%clk 0:00:24]} 33. h4 {[%clk 0:00:08]}  Bd6 {[%clk 0:00:22]} 34. Rb1 {[%clk 0:00:05]}  Bxf4 {[%clk 0:00:20]} 35. Qxf4 {[%clk 0:00:06]}  Qd6 {[%clk 0:00:15]} 36. Qxd6 {[%clk 0:00:06]}  Rxd6 {[%clk 0:00:16]} 37. Rb8+ {[%clk 0:00:06]}  Kh7 {[%clk 0:00:16]} 38. h5 {[%clk 0:00:07]}  g6 {[%clk 0:00:10]} 39. hxg6+ {[%clk 0:00:07]}  Kxg6 {[%clk 0:00:11]} 40. e4 {[%clk 0:00:07]}  Rd2 {[%clk 0:00:11]} 41. Kf3 {[%clk 0:00:07]}  Ra2 {[%clk 0:00:10]} 42. Ke3 {[%clk 0:00:06]}  Ra3+ {[%clk 0:00:09]} 43. Kf4 {[%clk 0:00:06]}  Ra2 {[%clk 0:00:10]} 44. Rb6+ {[%clk 0:00:07]}  Kg7 {[%clk 0:00:08]} 45. f3 {[%clk 0:00:08]}  Ra3 {[%clk 0:00:09]} 46. g4 {[%clk 0:00:08]}  Rc3 {[%clk 0:00:09]} 47. Rd6 {[%clk 0:00:07]}  Ra3 {[%clk 0:00:09]} 48. e5 {[%clk 0:00:08]}  Rb3 {[%clk 0:00:08]} 49. Ke4 {[%clk 0:00:08]}  Ra3 {[%clk 0:00:06]} 50. f4 {[%clk 0:00:08]}  Rg3 {[%clk 0:00:05]} 51. Kf5 {[%clk 0:00:09]}  Ra3 {[%clk 0:00:03]} 52. Rd7 {[%clk 0:00:09]}  Kg8 {[%clk 0:00:03]} 53. Kf6 {[%clk 0:00:08]}  Ra6+ {[%clk 0:00:04]} 54. Rd6 {[%clk 0:00:08]}  Ra7 {[%clk 0:00:03]} 55. f5 {[%clk 0:00:08]}  Rb7 {[%clk 0:00:03]} 56. e6 {[%clk 0:00:08]}  fxe6 {[%clk 0:00:03]} 57. fxe6 {[%clk 0:00:08]}  Rb4 {[%clk 0:00:01]} 58. Rd8+ {[%clk 0:00:07]}  Kh7 {[%clk 0:00:01]} 59. e7 {[%clk 0:00:07]}  Rf4+ {[%clk 0:00:01]} 60. Ke5 {[%clk 0:00:07]}  Rf1 {[%clk 0:00:02]} 61. e8=Q {[%clk 0:00:08]}  Re1+ {[%clk 0:00:03]} 62. Kf4 {[%clk 0:00:07]}  Rxe8 {[%clk 0:00:04]} 63. Rxe8 {[%clk 0:00:08]} 1-0


[Site "https://www.chess.com"]

[Event "Titled Tuesday Blitz February 28 Late 2023"]
[White "Hansen, Eric"]
[Black "Siddharth, Jagadeesh"]
[WhiteFideId "2606771"]
[BlackFideId "5818320"]
[WhiteElo "2569"]
[BlackElo "2303"]
[Result "1/2-1/2"]
[Round "06"]
[TimeControl "180+2"]
[Date "2023.02.28"]
[WhiteClock "0:00:02"]
[BlackClock "0:00:03"]

1. e4 {[%clk 0:03:00]}  c5 {[%clk 0:02:59]} 2. Nf3 {[%clk 0:03:01]}  d6 {[%clk 0:02:59]} 3. Bb5+ {[%clk 0:03:01]}  Bd7 {[%clk 0:02:59]} 4. a4 {[%clk 0:02:53]}  Nf6 {[%clk 0:02:58]} 5. Qe2 {[%clk 0:02:53]}  g6 {[%clk 0:02:47]} 6. e5 {[%clk 0:02:52]}  dxe5 {[%clk 0:02:47]} 7. Nxe5 {[%clk 0:02:52]}  Bg7 {[%clk 0:02:48]} 8. O-O {[%clk 0:02:52]}  O-O {[%clk 0:02:48]} 9. d3 {[%clk 0:02:51]}  Be6 {[%clk 0:02:32]} 10. Nc3 {[%clk 0:02:50]}  a6 {[%clk 0:02:31]} 11. Bc4 {[%clk 0:02:50]}  Bxc4 {[%clk 0:02:32]} 12. dxc4 {[%clk 0:02:48]}  e6 {[%clk 0:02:09]} 13. Bg5 {[%clk 0:02:21]}  Qc7 {[%clk 0:02:06]} 14. Rad1 {[%clk 0:02:17]}  Nfd7 {[%clk 0:01:57]} 15. Nxd7 {[%clk 0:02:12]}  Nxd7 {[%clk 0:01:58]} 16. Ne4 {[%clk 0:02:01]}  f6 {[%clk 0:00:41]} 17. Bh4 {[%clk 0:01:49]}  Rad8 {[%clk 0:00:40]} 18. Bg3 {[%clk 0:01:48]}  Ne5 {[%clk 0:00:32]} 19. f4 {[%clk 0:01:42]}  Rxd1 {[%clk 0:00:26]} 20. Rxd1 {[%clk 0:01:43]}  Nc6 {[%clk 0:00:27]} 21. c3 {[%clk 0:01:43]}  Qe7 {[%clk 0:00:22]} 22. Bf2 {[%clk 0:01:40]}  b6 {[%clk 0:00:22]} 23. Rd6 {[%clk 0:01:34]}  Rc8 {[%clk 0:00:22]} 24. Bh4 {[%clk 0:01:18]}  h6 {[%clk 0:00:17]} 25. Bxf6 {[%clk 0:01:05]}  Bxf6 {[%clk 0:00:18]} 26. Rd7 {[%clk 0:01:05]}  Qf8 {[%clk 0:00:16]} 27. Nd6 {[%clk 0:01:05]}  Re8 {[%clk 0:00:12]} 28. Qe4 {[%clk 0:01:02]}  Re7 {[%clk 0:00:06]} 29. Qxc6 {[%clk 0:01:01]}  Bg7 {[%clk 0:00:05]} 30. g3 {[%clk 0:00:57]}  Rxd7 {[%clk 0:00:04]} 31. Qxd7 {[%clk 0:00:57]}  e5 {[%clk 0:00:05]} 32. fxe5 {[%clk 0:00:54]}  Qf3 {[%clk 0:00:03]} 33. Qe6+ {[%clk 0:00:22]}  Kh7 {[%clk 0:00:03]} 34. Qd5 {[%clk 0:00:19]}  Qe3+ {[%clk 0:00:04]} 35. Kf1 {[%clk 0:00:19]}  Qc1+ {[%clk 0:00:04]} 36. Kg2 {[%clk 0:00:18]}  Qxb2+ {[%clk 0:00:05]} 37. Kh3 {[%clk 0:00:19]}  Qf2 {[%clk 0:00:04]} 38. Qf7 {[%clk 0:00:07]}  Qe2 {[%clk 0:00:03]} 39. Ne8 {[%clk 0:00:04]}  Qh5+ {[%clk 0:00:01]} 40. Kg2 {[%clk 0:00:04]}  Qe2+ {[%clk 0:00:02]} 41. Kg1 {[%clk 0:00:04]}  Qe1+ {[%clk 0:00:02]} 42. Kg2 {[%clk 0:00:05]}  Qe2+ {[%clk 0:00:03]} 43. Kg1 {[%clk 0:00:02]}  Qe1+ {[%clk 0:00:03]} 44. Kg2 {[%clk 0:00:02]}  Qe2+ {[%clk 0:00:03]} 1/2-1/2


[Site "https://www.chess.com"]

[Event "Titled Tuesday Blitz February 28 Late 2023"]
[White "Vasquez Schroeder, Rodrigo"]
[Black "Lewtak, Damian"]
[WhiteFideId "3400042"]
[BlackFideId "1141724"]
[WhiteElo "2600"]
[BlackElo "2302"]
[Result "1-0"]
[Round "06"]
[TimeControl "180+2"]
[Date "2023.02.28"]
[WhiteClock "0:00:42"]
[BlackClock "0:00:06"]

1. d4 {[%clk 0:03:00]}  d5 {[%clk 0:03:00]} 2. Nf3 {[%clk 0:02:59]}  Nf6 {[%clk 0:03:00]} 3. c4 {[%clk 0:02:59]}  c6 {[%clk 0:02:59]} 4. Nc3 {[%clk 0:02:57]}  dxc4 {[%clk 0:02:57]} 5. e4 {[%clk 0:02:56]}  b5 {[%clk 0:02:56]} 6. Be2 {[%clk 0:02:54]}  a6 {[%clk 0:02:47]} 7. O-O {[%clk 0:02:53]}  e6 {[%clk 0:02:42]} 8. a4 {[%clk 0:02:47]}  Bb7 {[%clk 0:02:38]} 9. e5 {[%clk 0:02:38]}  Nd5 {[%clk 0:02:34]} 10. Ne4 {[%clk 0:02:38]}  Nd7 {[%clk 0:02:34]} 11. Bg5 {[%clk 0:02:37]}  Qc7 {[%clk 0:02:34]} 12. Rc1 {[%clk 0:02:33]}  c5 {[%clk 0:02:31]} 13. axb5 {[%clk 0:02:29]}  axb5 {[%clk 0:02:31]} 14. b3 {[%clk 0:02:30]}  h6 {[%clk 0:02:20]} 15. Bh4 {[%clk 0:02:27]}  cxb3 {[%clk 0:02:04]} 16. Bxb5 {[%clk 0:02:22]}  Bc6 {[%clk 0:01:49]} 17. Bxc6 {[%clk 0:02:20]}  Qxc6 {[%clk 0:01:45]} 18. Qxb3 {[%clk 0:02:19]}  Rb8 {[%clk 0:01:44]} 19. Qc4 {[%clk 0:02:12]}  N7b6 {[%clk 0:01:39]} 20. Qe2 {[%clk 0:02:08]}  c4 {[%clk 0:01:39]} 21. Nfd2 {[%clk 0:01:56]}  Rc8 {[%clk 0:01:29]} 22. Qg4 {[%clk 0:01:47]}  g5 {[%clk 0:01:20]} 23. Bg3 {[%clk 0:01:44]}  Be7 {[%clk 0:01:21]} 24. Qh5 {[%clk 0:01:42]}  c3 {[%clk 0:01:17]} 25. Nf3 {[%clk 0:01:32]}  Rg8 {[%clk 0:00:54]} 26. Qxh6 {[%clk 0:01:28]}  Kd8 {[%clk 0:00:47]} 27. Nfxg5 {[%clk 0:01:08]}  Kd7 {[%clk 0:00:35]} 28. Nf6+ {[%clk 0:01:02]}  Bxf6 {[%clk 0:00:32]} 29. exf6 {[%clk 0:01:02]}  Rg6 {[%clk 0:00:32]} 30. Qh7 {[%clk 0:00:58]}  Rxg5 {[%clk 0:00:16]} 31. Qxf7+ {[%clk 0:00:57]}  Kd8 {[%clk 0:00:16]} 32. Rfe1 {[%clk 0:00:57]}  Qd7 {[%clk 0:00:08]} 33. Qf8+ {[%clk 0:00:52]}  Qe8 {[%clk 0:00:08]} 34. Qh6 {[%clk 0:00:46]}  Qg6 {[%clk 0:00:06]} 35. Qf8+ {[%clk 0:00:43]}  Qe8 {[%clk 0:00:05]} 36. Qd6+ {[%clk 0:00:43]}  Qd7 {[%clk 0:00:05]} 37. f7 {[%clk 0:00:43]}  Rf5 {[%clk 0:00:06]} 38. f8=Q+ {[%clk 0:00:41]}  Rxf8 {[%clk 0:00:05]} 39. Qxf8+ {[%clk 0:00:42]}  Qe8 {[%clk 0:00:06]} 40. Qd6+ {[%clk 0:00:42]}  Qd7 {[%clk 0:00:06]} 41. Bh4+ {[%clk 0:00:42]} 1-0


[Site "https://www.chess.com"]

[Event "Titled Tuesday Blitz February 28 Late 2023"]
[White "Real_OceanStorm"]
[Black "Haydon, David L"]
[BlackFideId "415405"]
[WhiteElo "2776"]
[BlackElo "2326"]
[Result "1-0"]
[Round "06"]
[TimeControl "180+2"]
[Date "2023.02.28"]
[WhiteClock "0:00:11"]
[BlackClock "0:00:30"]

1. e4 {[%clk 0:02:55]}  c6 {[%clk 0:02:59]} 2. d4 {[%clk 0:02:55]}  d5 {[%clk 0:02:59]} 3. e5 {[%clk 0:02:56]}  c5 {[%clk 0:02:57]} 4. Nf3 {[%clk 0:02:56]}  cxd4 {[%clk 0:02:57]} 5. Qxd4 {[%clk 0:02:56]}  Nc6 {[%clk 0:02:56]} 6. Qf4 {[%clk 0:02:56]}  e6 {[%clk 0:02:55]} 7. Nbd2 {[%clk 0:02:36]}  Bc5 {[%clk 0:02:53]} 8. Nb3 {[%clk 0:02:36]}  Bb6 {[%clk 0:02:52]} 9. c4 {[%clk 0:02:35]}  Nge7 {[%clk 0:02:49]} 10. c5 {[%clk 0:02:34]}  Bc7 {[%clk 0:02:49]} 11. Bd3 {[%clk 0:02:35]}  Ng6 {[%clk 0:02:47]} 12. Bxg6 {[%clk 0:02:34]}  hxg6 {[%clk 0:02:47]} 13. Nbd4 {[%clk 0:02:34]}  Nxd4 {[%clk 0:02:27]} 14. Qxd4 {[%clk 0:02:34]}  Bd7 {[%clk 0:02:20]} 15. Bg5 {[%clk 0:02:17]}  Qb8 {[%clk 0:02:16]} 16. Rc1 {[%clk 0:02:10]}  Bc6 {[%clk 0:02:12]} 17. a3 {[%clk 0:01:59]}  a5 {[%clk 0:02:10]} 18. b3 {[%clk 0:01:56]}  O-O {[%clk 0:01:59]} 19. O-O {[%clk 0:01:55]}  Re8 {[%clk 0:01:29]} 20. h3 {[%clk 0:01:38]}  Bd8 {[%clk 0:00:54]} 21. Bxd8 {[%clk 0:01:30]}  Qxd8 {[%clk 0:00:53]} 22. a4 {[%clk 0:01:15]}  f6 {[%clk 0:00:51]} 23. Qg4 {[%clk 0:01:11]}  g5 {[%clk 0:00:46]} 24. Rfe1 {[%clk 0:01:07]}  Bd7 {[%clk 0:00:39]} 25. Qh5 {[%clk 0:01:07]}  Qe7 {[%clk 0:00:33]} 26. Qg6 {[%clk 0:01:03]}  Qf7 {[%clk 0:00:32]} 27. Qd3 {[%clk 0:01:03]}  Bc6 {[%clk 0:00:32]} 28. Rcd1 {[%clk 0:01:00]}  Qh5 {[%clk 0:00:31]} 29. Nd4 {[%clk 0:01:01]}  f5 {[%clk 0:00:31]} 30. Nb5 {[%clk 0:00:49]}  Re7 {[%clk 0:00:31]} 31. Nd6 {[%clk 0:00:46]}  g4 {[%clk 0:00:29]} 32. Qe2 {[%clk 0:00:27]}  g5 {[%clk 0:00:25]} 33. Rd3 {[%clk 0:00:27]}  Rh7 {[%clk 0:00:24]} 34. Rg3 {[%clk 0:00:27]}  gxh3 {[%clk 0:00:23]} 35. gxh3 {[%clk 0:00:27]}  Kf8 {[%clk 0:00:19]} 36. Qxh5 {[%clk 0:00:16]}  Rxh5 {[%clk 0:00:20]} 37. f4 {[%clk 0:00:16]}  gxf4 {[%clk 0:00:19]} 38. Rg6 {[%clk 0:00:16]}  d4 {[%clk 0:00:19]} 39. Kh2 {[%clk 0:00:16]}  Rh7 {[%clk 0:00:16]} 40. Rxe6 {[%clk 0:00:16]}  f3 {[%clk 0:00:15]} 41. Rf6+ {[%clk 0:00:16]}  Kg8 {[%clk 0:00:15]} 42. Rg1+ {[%clk 0:00:16]}  Rg7 {[%clk 0:00:15]} 43. Rxg7+ {[%clk 0:00:16]}  Kxg7 {[%clk 0:00:16]} 44. Nxf5+ {[%clk 0:00:16]}  Kh7 {[%clk 0:00:16]} 45. Nxd4 {[%clk 0:00:16]}  Rd8 {[%clk 0:00:16]} 46. Nxc6 {[%clk 0:00:16]}  bxc6 {[%clk 0:00:16]} 47. Kg3 {[%clk 0:00:09]}  Rd5 {[%clk 0:00:17]} 48. Rxc6 {[%clk 0:00:09]}  Rxe5 {[%clk 0:00:17]} 49. Kxf3 {[%clk 0:00:09]}  Rd5 {[%clk 0:00:17]} 50. Kg4 {[%clk 0:00:09]}  Rd3 {[%clk 0:00:17]} 51. Rb6 {[%clk 0:00:10]}  Rc3 {[%clk 0:00:18]} 52. Rb5 {[%clk 0:00:10]}  Kg6 {[%clk 0:00:18]} 53. h4 {[%clk 0:00:10]}  Kf6 {[%clk 0:00:18]} 54. h5 {[%clk 0:00:10]}  Rc1 {[%clk 0:00:19]} 55. Rxa5 {[%clk 0:00:09]}  Rg1+ {[%clk 0:00:19]} 56. Kf4 {[%clk 0:00:09]}  Rc1 {[%clk 0:00:20]} 57. Ra6+ {[%clk 0:00:09]}  Kg7 {[%clk 0:00:20]} 58. c6 {[%clk 0:00:09]}  Kh6 {[%clk 0:00:21]} 59. b4 {[%clk 0:00:10]}  Rxc6 {[%clk 0:00:20]} 60. Rxc6+ {[%clk 0:00:09]}  Kxh5 {[%clk 0:00:21]} 61. Rc5+ {[%clk 0:00:09]}  Kh4 {[%clk 0:00:22]} 62. b5 {[%clk 0:00:10]}  Kh3 {[%clk 0:00:22]} 63. b6 {[%clk 0:00:11]}  Kg2 {[%clk 0:00:23]} 64. b7 {[%clk 0:00:12]}  Kf1 {[%clk 0:00:24]} 65. b8=B {[%clk 0:00:12]}  Kf2 {[%clk 0:00:25]} 66. a5 {[%clk 0:00:12]}  Kg1 {[%clk 0:00:26]} 67. Ke5 {[%clk 0:00:13]}  Kf2 {[%clk 0:00:27]} 68. Kd5 {[%clk 0:00:14]}  Kf1 {[%clk 0:00:28]} 69. a6 {[%clk 0:00:15]}  Ke2 {[%clk 0:00:28]} 70. a7 {[%clk 0:00:16]}  Kd1 {[%clk 0:00:29]} 71. a8=B {[%clk 0:00:16]}  Ke2 {[%clk 0:00:30]} 72. Kd4 {[%clk 0:00:16]}  Kd2 {[%clk 0:00:30]} 73. Bf3 {[%clk 0:00:16]}  Ke1 {[%clk 0:00:31]} 74. Ke3 {[%clk 0:00:13]}  Kf1 {[%clk 0:00:30]} 75. Rc1# {[%clk 0:00:11]} 1-0


[Site "https://www.chess.com"]

[Event "Titled Tuesday Blitz February 28 Late 2023"]
[White "Koellner, Ruben Gideon"]
[Black "Pulpan, Jakub"]
[WhiteFideId "12993093"]
[BlackFideId "302759"]
[WhiteElo "2303"]
[BlackElo "2484"]
[Result "0-1"]
[Round "06"]
[TimeControl "180+2"]
[Date "2023.02.28"]
[WhiteClock "0:00:16"]
[BlackClock "0:01:12"]

1. d4 {[%clk 0:03:00]}  Nf6 {[%clk 0:02:43]} 2. Nf3 {[%clk 0:03:00]}  e6 {[%clk 0:02:38]} 3. Nbd2 {[%clk 0:03:00]}  c5 {[%clk 0:02:33]} 4. e3 {[%clk 0:03:00]}  b6 {[%clk 0:02:33]} 5. Bd3 {[%clk 0:03:00]}  Bb7 {[%clk 0:02:34]} 6. O-O {[%clk 0:03:00]}  cxd4 {[%clk 0:02:34]} 7. exd4 {[%clk 0:03:00]}  Be7 {[%clk 0:02:33]} 8. c3 {[%clk 0:03:00]}  O-O {[%clk 0:02:34]} 9. Re1 {[%clk 0:03:00]}  d6 {[%clk 0:02:34]} 10. Qe2 {[%clk 0:02:59]}  Nbd7 {[%clk 0:02:35]} 11. a4 {[%clk 0:02:57]}  a6 {[%clk 0:02:35]} 12. Nf1 {[%clk 0:02:53]}  Re8 {[%clk 0:02:31]} 13. Ng3 {[%clk 0:02:53]}  Bf8 {[%clk 0:02:31]} 14. Bg5 {[%clk 0:02:51]}  h6 {[%clk 0:02:30]} 15. Bd2 {[%clk 0:02:51]}  e5 {[%clk 0:02:23]} 16. dxe5 {[%clk 0:02:48]}  dxe5 {[%clk 0:02:23]} 17. Ne4 {[%clk 0:02:47]}  Nxe4 {[%clk 0:02:22]} 18. Bxe4 {[%clk 0:02:48]}  Bxe4 {[%clk 0:02:22]} 19. Qxe4 {[%clk 0:02:47]}  Nc5 {[%clk 0:02:23]} 20. Qc4 {[%clk 0:02:25]}  Nd3 {[%clk 0:02:19]} 21. Re2 {[%clk 0:01:44]}  Nxb2 {[%clk 0:02:15]} 22. Qe4 {[%clk 0:01:44]}  Qd3 {[%clk 0:01:45]} 23. Rb1 {[%clk 0:01:26]}  Qxe4 {[%clk 0:01:39]} 24. Rxe4 {[%clk 0:01:27]}  f5 {[%clk 0:01:39]} 25. Rxe5 {[%clk 0:01:22]}  Rxe5 {[%clk 0:01:36]} 26. Nxe5 {[%clk 0:01:22]}  Nxa4 {[%clk 0:01:37]} 27. c4 {[%clk 0:01:14]}  Bd6 {[%clk 0:01:21]} 28. Nd7 {[%clk 0:00:59]}  Rd8 {[%clk 0:01:03]} 29. Nxb6 {[%clk 0:00:58]}  Nxb6 {[%clk 0:01:04]} 30. Rxb6 {[%clk 0:00:57]}  Bc7 {[%clk 0:01:03]} 31. Rb2 {[%clk 0:00:53]}  Ba5 {[%clk 0:01:03]} 32. Kf1 {[%clk 0:00:12]}  Rxd2 {[%clk 0:01:03]} 33. Rb8+ {[%clk 0:00:11]}  Kh7 {[%clk 0:01:04]} 34. Ra8 {[%clk 0:00:12]}  Rd6 {[%clk 0:01:04]} 35. c5 {[%clk 0:00:12]}  Rc6 {[%clk 0:01:04]} 36. Ke2 {[%clk 0:00:11]}  Bb4 {[%clk 0:01:04]} 37. f3 {[%clk 0:00:11]}  Bxc5 {[%clk 0:01:05]} 38. Kd3 {[%clk 0:00:12]}  Bb4 {[%clk 0:01:04]} 39. Kd4 {[%clk 0:00:12]}  a5 {[%clk 0:01:04]} 40. Kd5 {[%clk 0:00:13]}  Rc2 {[%clk 0:01:04]} 41. g4 {[%clk 0:00:13]}  fxg4 {[%clk 0:01:04]} 42. fxg4 {[%clk 0:00:14]}  Rxh2 {[%clk 0:01:05]} 43. Ke6 {[%clk 0:00:15]}  Rf2 {[%clk 0:01:05]} 44. Ra6 {[%clk 0:00:14]}  Rf6+ {[%clk 0:01:06]} 45. Kd7 {[%clk 0:00:14]}  Rxa6 {[%clk 0:01:06]} 46. Ke8 {[%clk 0:00:14]}  a4 {[%clk 0:01:07]} 47. g5 {[%clk 0:00:15]}  hxg5 {[%clk 0:01:07]} 48. Kd7 {[%clk 0:00:16]}  a3 {[%clk 0:01:07]} 49. Ke8 {[%clk 0:00:16]}  a2 {[%clk 0:01:08]} 50. Kd8 {[%clk 0:00:17]}  a1=Q {[%clk 0:01:09]} 51. Kc8 {[%clk 0:00:18]}  Qa5 {[%clk 0:01:09]} 52. Kd7 {[%clk 0:00:17]}  Rb6 {[%clk 0:01:10]} 53. Kc8 {[%clk 0:00:16]}  Qa7 {[%clk 0:01:11]} 54. Kd8 {[%clk 0:00:16]}  Rb8# {[%clk 0:01:12]} 0-1


[Site "https://www.chess.com"]

[Event "Titled Tuesday Blitz February 28 Late 2023"]
[White "Fernandez Guillen, Ernesto J."]
[Black "Florescu, Codrut-Constantin"]
[WhiteFideId "3512428"]
[BlackFideId "1202200"]
[WhiteElo "2423"]
[BlackElo "2191"]
[Result "1-0"]
[Round "06"]
[TimeControl "180+2"]
[Date "2023.02.28"]
[WhiteClock "0:01:51"]
[BlackClock "0:00:55"]

1. e4 {[%clk 0:03:00]}  c5 {[%clk 0:02:59]} 2. Nf3 {[%clk 0:03:00]}  e6 {[%clk 0:03:00]} 3. d4 {[%clk 0:03:01]}  cxd4 {[%clk 0:03:00]} 4. Nxd4 {[%clk 0:03:02]}  a6 {[%clk 0:03:01]} 5. Bd3 {[%clk 0:03:02]}  Bc5 {[%clk 0:02:59]} 6. Nb3 {[%clk 0:03:03]}  Ba7 {[%clk 0:02:59]} 7. Nc3 {[%clk 0:03:04]}  Ne7 {[%clk 0:02:56]} 8. Qe2 {[%clk 0:03:05]}  O-O {[%clk 0:02:55]} 9. Be3 {[%clk 0:03:05]}  b5 {[%clk 0:02:55]} 10. O-O-O {[%clk 0:03:02]}  d6 {[%clk 0:02:54]} 11. e5 {[%clk 0:02:52]}  d5 {[%clk 0:02:54]} 12. Bxa7 {[%clk 0:02:41]}  Rxa7 {[%clk 0:02:54]} 13. Qh5 {[%clk 0:02:33]}  g6 {[%clk 0:02:46]} 14. Qh6 {[%clk 0:02:33]}  Bd7 {[%clk 0:02:40]} 15. Rhe1 {[%clk 0:02:32]}  b4 {[%clk 0:02:38]} 16. Re3 {[%clk 0:02:20]}  f5 {[%clk 0:02:19]} 17. Rh3 {[%clk 0:02:10]}  Rf7 {[%clk 0:02:17]} 18. Ne2 {[%clk 0:02:10]}  a5 {[%clk 0:02:11]} 19. Nbd4 {[%clk 0:02:10]}  Nbc6 {[%clk 0:01:57]} 20. Nf3 {[%clk 0:02:07]}  b3 {[%clk 0:01:41]} 21. axb3 {[%clk 0:02:02]}  a4 {[%clk 0:01:37]} 22. Ng5 {[%clk 0:02:01]}  Rg7 {[%clk 0:01:30]} 23. Nxh7 {[%clk 0:02:00]}  axb3 {[%clk 0:01:25]} 24. Ng5 {[%clk 0:01:56]}  Kf8 {[%clk 0:01:09]} 25. Nf4 {[%clk 0:01:54]}  Ra1+ {[%clk 0:00:58]} 26. Kd2 {[%clk 0:01:53]}  Rxd1+ {[%clk 0:00:59]} 27. Kxd1 {[%clk 0:01:54]}  bxc2+ {[%clk 0:00:59]} 28. Bxc2 {[%clk 0:01:54]}  Nxe5 {[%clk 0:00:55]} 29. Nfxe6+ {[%clk 0:01:51]} 1-0


[Site "https://www.chess.com"]

[Event "Titled Tuesday Blitz February 28 Late 2023"]
[White "Pinheiro, Iung Alicio de O."]
[Black "Ibarra Jerez, Jose Carlos"]
[WhiteFideId "2104350"]
[BlackFideId "2226332"]
[WhiteElo "2283"]
[BlackElo "2638"]
[Result "0-1"]
[Round "06"]
[TimeControl "180+2"]
[Date "2023.02.28"]
[WhiteClock "0:00:08"]
[BlackClock "0:00:17"]

1. e4 {[%clk 0:03:00]}  c5 {[%clk 0:03:00]} 2. Nf3 {[%clk 0:03:00]}  e6 {[%clk 0:03:00]} 3. d3 {[%clk 0:02:59]}  Nc6 {[%clk 0:03:00]} 4. g3 {[%clk 0:02:59]}  g6 {[%clk 0:03:00]} 5. Bg5 {[%clk 0:02:58]}  f6 {[%clk 0:02:57]} 6. Bd2 {[%clk 0:02:43]}  d5 {[%clk 0:02:56]} 7. exd5 {[%clk 0:02:43]}  exd5 {[%clk 0:02:56]} 8. Bg2 {[%clk 0:02:43]}  Bg7 {[%clk 0:02:56]} 9. O-O {[%clk 0:02:43]}  Nge7 {[%clk 0:02:56]} 10. c4 {[%clk 0:02:35]}  O-O {[%clk 0:02:43]} 11. Nc3 {[%clk 0:02:33]}  d4 {[%clk 0:02:41]} 12. Ne4 {[%clk 0:02:09]}  b6 {[%clk 0:02:40]} 13. Bf4 {[%clk 0:02:06]}  g5 {[%clk 0:02:37]} 14. Nfxg5 {[%clk 0:01:47]}  fxg5 {[%clk 0:02:35]} 15. Nxg5 {[%clk 0:01:48]}  h6 {[%clk 0:02:28]} 16. Ne4 {[%clk 0:01:45]}  Bf5 {[%clk 0:02:16]} 17. Qh5 {[%clk 0:01:40]}  Bg6 {[%clk 0:02:12]} 18. Qh3 {[%clk 0:01:35]}  Qc8 {[%clk 0:01:58]} 19. Qh4 {[%clk 0:01:33]}  Nf5 {[%clk 0:01:45]} 20. Qg4 {[%clk 0:01:32]}  Kh7 {[%clk 0:01:44]} 21. a3 {[%clk 0:01:24]}  Qd7 {[%clk 0:01:37]} 22. h4 {[%clk 0:01:19]}  Rad8 {[%clk 0:01:11]} 23. Rae1 {[%clk 0:01:12]}  Nfe7 {[%clk 0:01:07]} 24. Qd1 {[%clk 0:01:07]}  Bf5 {[%clk 0:01:05]} 25. Nd6 {[%clk 0:01:03]}  Bg4 {[%clk 0:01:02]} 26. f3 {[%clk 0:00:52]}  Bh3 {[%clk 0:01:00]} 27. Ne4 {[%clk 0:00:46]}  Bxg2 {[%clk 0:00:59]} 28. Kxg2 {[%clk 0:00:47]}  Rxf4 {[%clk 0:00:57]} 29. gxf4 {[%clk 0:00:47]}  Nf5 {[%clk 0:00:57]} 30. Qd2 {[%clk 0:00:41]}  Rg8 {[%clk 0:00:54]} 31. Kf2 {[%clk 0:00:38]}  Qf7 {[%clk 0:00:41]} 32. Rh1 {[%clk 0:00:36]}  Ne3 {[%clk 0:00:40]} 33. Reg1 {[%clk 0:00:26]}  Qxf4 {[%clk 0:00:37]} 34. Ke2 {[%clk 0:00:22]}  Ne5 {[%clk 0:00:36]} 35. Rh3 {[%clk 0:00:18]}  Rf8 {[%clk 0:00:35]} 36. Ng5+ {[%clk 0:00:07]}  hxg5 {[%clk 0:00:34]} 37. hxg5+ {[%clk 0:00:07]}  Kg6 {[%clk 0:00:34]} 38. Rgg3 {[%clk 0:00:08]}  Rh8 {[%clk 0:00:20]} 39. Qe1 {[%clk 0:00:06]}  Rxh3 {[%clk 0:00:19]} 40. Rxh3 {[%clk 0:00:07]}  Qf5 {[%clk 0:00:19]} 41. Qh4 {[%clk 0:00:06]}  Qxd3+ {[%clk 0:00:18]} 42. Kf2 {[%clk 0:00:07]}  Qf1+ {[%clk 0:00:18]} 43. Kg3 {[%clk 0:00:08]}  Qxf3+ {[%clk 0:00:17]} 0-1


[Site "https://www.chess.com"]